[Event "1000GM Spring GM-B 2024"]
[Site "New York"]
[Date "2024.03.28"]
[Round "2.4"]
[White "Kaliksteyn, Alexander"]
[Black "Girish, A. Koushik"]
[Result "0-1"]
[ECO "A26"]
[WhiteElo "2356"]
[BlackElo "2499"]
[Annotator "TA"]
[PlyCount "76"]
[EventDate "2024.03.26"]
[EventType "tourn"]
[EventCountry "USA"]
[SourceTitle "playchess.com"]
[Source "ChessBase"]
[SourceQuality "1"]
[TimeControl "5400+30"]

{[%evp 20,76,31,31,19,24,25,25,32,12,21,0,0,-58,-22,-84,-72,-60,-66,-97,-79,-96,-34,-34,-37,-40,-27,-82,-81,-100,-32,-43,-51,-37,-37,-50,-57,-55,-41,-37,-36,-41,-44,-85,-86,-75,-79,-1027,-964,-1029,-1010,-29979,-29980,-29980,-29981,-29981,-29982,-29980,-29981]} 1. c4 {[%emt 0:00:02]} Nf6 {[%emt 0:01:23]} 2. Nc3 {[%emt 0:00:52]} g6 {[%emt 0:03:46]} 3. g3 {[%emt 0:01:16]} Bg7 {[%emt 0:03:59]} 4. Bg2 {[%emt 0:00:14]} O-O {[%emt 0:00:07]} 5. Nf3 {[%emt 0:00:14]} d6 {[%emt 0:07:26]} 6. O-O {[%emt 0:00:31]} Nc6 {[%emt 0:00:45]} 7. Rb1 {[%emt 0:01:45]} e5 {[%emt 0:01:14]} 8. d3 {[%emt 0:00:18]} h6 {[%emt 0:02:41]} 9. b4 {[%emt 0:00:38][%cal Bb2b4,Bb4b5][%mdl 32]} Be6 {[%emt 0:00:22]} 10. b5 {[%emt 0:06:16]} Ne7 {[%emt 0:00:28]} 11. Nd2 {[%emt 0:00:19]} Qc8 {[%emt 0:00:30]} 12. Re1 {[%emt 0:00:50]} Bh3 {[%emt 0:00:49]} 13. Bh1 {[%emt 0:00:12]} Ng4 {[%emt 0:01:47] White has an edge.} 14. Bb2 {[%emt 0:10:25]} f5 {[%emt 0:06:05]} 15. Nd5 {[%emt 0:19:06]} Nxd5 {[%emt 0:05:15]} 16. cxd5 {[%emt 0:00:37]} (16. Bxd5+ $11 Kh7 17. e3) 16... f4 {[%emt 0:02:25][%cal Og4f2] Hoping for ...Nxf2!} 17. Nf3 {[%emt 0:01:05]} (17. Ne4 $11 {remains equal.}) 17... Qf5 {[%emt 0:14:40] Black is more active.} 18. Rc1 {[%emt 0:02:32]} Rf7 {[%emt 0:10:31]} 19. Rc4 {[%emt 0:09:31]} g5 {[%emt 0:06:26]} 20. Qc2 {[%emt 0:11:31] [#]} Qd7 {[%emt 0:06:44]} (20... Rc8 $1 $17 {Threatens to win with ...Nf6.} 21. Ba3 fxg3 22. hxg3 Qd7) 21. a4 $15 {[%emt 0:01:46]} Re8 {[%emt 0:02:11]} 22. Rc1 {[%emt 0:00:54]} Ree7 {[%emt 0:00:30]} 23. Qb3 {[%emt 0:03:50]} (23. Qd2 $11) 23... Qf5 $17 {[%emt 0:01:57]} 24. a5 {[%emt 0:03:18]} fxg3 {[%emt 0:08:44]} ({Black should try} 24... b6 $17) 25. hxg3 $15 {[%emt 0:00:08] [#]} Nxf2 $1 {[%emt 0:00:06]} 26. Kxf2 {[%emt 0:00:25]} g4 {[%emt 0:00:06]} 27. b6 {[%emt 0:03:30]} axb6 {[%emt 0:00:07]} (27... cxb6 {seems wilder.} 28. axb6 axb6 29. Qxb6 gxf3 30. Bxf3 Bg4) 28. axb6 {[%emt 0:00:03]} cxb6 {[%emt 0:01:21]} 29. Qxb6 {[%emt 0:16:50]} gxf3 {[%emt 0:00:25]} 30. Bxf3 {[%emt 0:00:05]} Bg4 {[%emt 0:01:18]} 31. Qd8+ {[%emt 0:04:45]} (31. Qxd6 $2 Bxf3 32. Rc8+ Kh7 $19) 31... Bf8 {[%emt 0:00:57][%cal Rg4f3]} 32. Rxg4+ {[%emt 0:00:40]} Qxg4 {[%emt 0:00:02]} 33. Qxd6 $2 {[%emt 0:00:25][%mdl 8192] This costs White the game.} (33. Kg2 $17 Qg6 34. Qc8) 33... e4 $19 {[%emt 0:09:45]} 34. dxe4 {[%emt 0:00:07]} Rxe4 {[%emt 0:00:06]} 35. Qb6 {[%emt 0:01:14] [#]} Rxe2+ $3 {[%emt 0:00:18][%mdl 512] Black mates.} 36. Kxe2 {[%emt 0:00:04]} Qxf3+ {[%emt 0:00:03]} 37. Kd2 {[%emt 0:00:30]} Qg2+ {[%emt 0:00:45]} (37... Qxg3 $2 {is the wrong capture.} 38. Rg1 $18) 38. Kd3 {[%emt 0:00:26]} Rf3+ {[%emt 0:00:13] Weighted Error Value: White=0.67/Black=0.08 (flawless) .  Loses game:     	White=1     	---        Mistake:       	White=3     	Black=2      Inaccurate:     	White=1     	Black=1      OK:         	White=10    	Black=7      Best:        	---       	Black=4} 0-1

[Event "1000GM Spring GM-B 2024"]
[Site "New York"]
[Date "2024.03.28"]
[Round "2.5"]
[White "Griffith, Kyron"]
[Black "Nagy, Gabor"]
[Result "1/2-1/2"]
[ECO "C77"]
[WhiteElo "2352"]
[BlackElo "2436"]
[Annotator "TA"]
[PlyCount "42"]
[EventDate "2024.03.26"]
[EventType "tourn"]
[EventCountry "USA"]
[SourceTitle "playchess.com"]
[Source "ChessBase"]
[SourceQuality "1"]
[TimeControl "5400+30"]

{[%evp 16,42,7,9,12,8,3,11,19,8,6,10,18,5,10,8,41,35,62,11,45,35,78,15,7,2,0,0,5]} 1. e4 {[%emt 0:00:02]} e5 {[%emt 0:05:25]} 2. Nf3 {[%emt 0:00:07]} Nc6 {[%emt 0:02:47]} 3. Bb5 {[%emt 0:00:06][%cal Bf1b5,Bb5a4,Ba4b3,Bb3d5][%mdl 32]} a6 {[%emt 0:00:16]} 4. Ba4 {[%emt 0:00:05]} Nf6 {[%emt 0:00:13]} 5. O-O {[%emt 0:00:06]} Be7 {[%emt 0:00:33]} 6. d3 {[%emt 0:00:20]} b5 {[%emt 0:00:30]} 7. Bb3 {[%emt 0:00:05]} d6 {[%emt 0:00:12]} 8. a3 {[%emt 0:01:22]} O-O {[%emt 0:01:10]} 9. Nc3 {[%emt 0:00:22]} Rb8 {[%emt 0:00:26]} 10. Nd5 {[%emt 0:03:02]} Nxd5 {[%emt 0:01:30]} 11. Bxd5 {[%emt 0:00:24]} Qe8 {[%emt 0:00:29]} 12. Re1 {[%emt 0:07:07]} Bf6 {[%emt 0:05:12]} 13. c3 {[%emt 0:04:02]} Be6 {[%emt 0:07:29]} 14. Bxe6 {[%emt 0:13:14]} Qxe6 {[%emt 0:00:58]} 15. d4 {[%emt 0:01:45]} exd4 {[%emt 0:01:29]} 16. cxd4 {[%emt 0:00:07]} Na5 {[%emt 0:00:20]} 17. Bf4 {[%emt 0:11:40]} (17. Bd2 $1 $14 Nb7 18. b4) 17... Rbc8 {[%emt 0:00:38]} 18. a4 {[%emt 0:06:17] [#] Hoping for axb5.} b4 {[%emt 0:01:34]} 19. Qe2 {[%emt 0:04:37]} (19. e5 $16 dxe5 20. Bxe5) 19... Qc4 $11 {[%emt 0:01:50] The position is equal.} 20. Rac1 {[%emt 0:03:37]} Qxe2 {[%emt 0:01:21]} 21. Rxe2 {[%emt 0:00:02]} Rfe8 {[%emt 0:00:26] Weighted Error Value: White=0.20 (precise) /Black=0.13 (very precise) .  Mistake:       	White=2     	---        Inaccurate:     	---       	Black=4      OK:         	White=1     	Black=5} 1/2-1/2

[Event "1000GM Spring GM-B 2024"]
[Site "New York"]
[Date "2024.03.29"]
[Round "3.1"]
[White "Nagy, Gabor"]
[Black "Eidelman, Gabriel"]
[Result "1-0"]
[ECO "A21"]
[WhiteElo "2436"]
[BlackElo "2374"]
[Annotator "TA"]
[PlyCount "51"]
[EventDate "2024.03.26"]
[EventType "tourn"]
[EventCountry "USA"]
[SourceTitle "playchess.com"]
[Source "ChessBase"]
[SourceQuality "1"]
[TimeControl "5400+30"]

{[%evp 9,51,14,13,13,8,12,9,18,25,14,11,0,0,0,130,122,118,127,116,122,126,122,125,104,111,112,115,107,173,105,185,100,77,67,120,51,152,162,181,147,207,209,215,207]} 1. c4 {[%emt 0:00:25]} e5 {[%emt 0:00:32]} 2. Nc3 {[%emt 0:00:44]} Bb4 {[%emt 0:00:15]} 3. Nd5 {[%emt 0:01:20]} a5 {[%emt 0:00:08]} 4. a3 {[%emt 0:01:27]} Bc5 {[%emt 0:00:37]} 5. Nf3 {[%emt 0:00:52]} d6 {[%emt 0:01:27]} 6. d4 {[%emt 0:01:27]} exd4 {[%emt 0:00:08]} 7. Nxd4 {[%emt 0:00:14] Nb5 would now be deadly.} Ne7 {[%emt 0:01:15]} 8. Bg5 {[%emt 0:03:47] The position is equal.} f6 {[%emt 0:00:07]} 9. Bf4 {[%emt 0:00:46]} O-O {[%emt 0:05:41]} 10. h4 {[%emt 0:05:54]} a4 {[%emt 0:25:10]} 11. e3 {[%emt 0:01:31]} Nf5 {[%emt 0:00:51]} (11... Bxd4 $11 {keeps the balance.} 12. Qxd4 Nd7) 12. Nxf5 $1 $16 {[%emt 0:01:57]} Bxf5 {[%emt 0:00:34] [#]} 13. Nxc7 $1 {[%emt 0:02:04][%mdl 512] White is more active.} Qxc7 {[%emt 0:00:14]} 14. Qd5+ {[%emt 0:00:06]} Kh8 {[%emt 0:00:38] White must now prevent ...Qa5+.} 15. Qxf5 {[%emt 0:02:14]} Qa5+ {[%emt 0:00:13] [#]} 16. Kd1 $1 {[%emt 0:01:00]} Nc6 {[%emt 0:03:39][%cal Od6d5]} 17. Bd3 {[%emt 0:03:46][%csl Gd3][%cal Rf5h7] Dancing on a razor blade.} g6 {[%emt 0:00:56]} 18. Qd5 $40 {[%emt 0:00:51][%cal Of4h6][%mdl 128] Hoping for Bh6! White is out for blood.} Ne7 {[%emt 0:05:31]} (18... Qd8 $16) 19. Qf3 {[%emt 0:01:54]} ({Better is} 19. Qxb7 $18 Qd8 20. Qf3) 19... d5 {[%emt 0:01:23]} 20. Ke2 {[%emt 0:02:25]} (20. Bh6 $18) 20... Qb6 {[%emt 0:01:15]} 21. Rab1 {[%emt 0:02:13]} (21. cxd5 $2 {perishes.} Qxb2+ $19) 21... Rad8 {[%emt 0:01:40]} (21... d4 $1 $14) 22. Rhc1 {[%emt 0:07:23]} (22. cxd5 $16 {And now e4 would win.} Nxd5 23. Rhd1) 22... dxc4 {[%emt 0:01:40]} ({Black should try} 22... d4 $14) 23. Bxc4 {[%emt 0:00:57] White is clearly better.} Nf5 {[%emt 0:00:06]} 24. g4 {[%emt 0:14:18]} Nxh4 {[%emt 0:03:56] [#]} (24... Nd6 $16 {might work better.} 25. Kf1 Nxc4 26. Rxc4 Bxa3) 25. Qg3 $1 $18 {[%emt 0:00:14][%cal Of4c7]} g5 {[%emt 0:02:22]} 26. Bc7 {[%emt 0:00:26] Weighted Error Value: White=0.18 (very precise) /Black=0.30.  Mistake:       	White=3     	Black=6      OK:         	White=4     	Black=5      Best:        	White=3     	Black=3      Strong:       	White=3     	---        Brilliant:      	White=1     	---} 1-0

[Event "1000GM Spring GM-B 2024"]
[Site "New York"]
[Date "2024.03.29"]
[Round "3.2"]
[White "Girish, A. Koushik"]
[Black "Griffith, Kyron"]
[Result "1/2-1/2"]
[ECO "D30"]
[WhiteElo "2499"]
[BlackElo "2352"]
[Annotator "TA"]
[PlyCount "195"]
[EventDate "2024.03.26"]
[EventType "tourn"]
[EventCountry "USA"]
[SourceTitle "playchess.com"]
[Source "ChessBase"]
[SourceQuality "1"]
[TimeControl "5400+30"]

{[%evp 89,195,23,23,8,8,0,0,0,0,0,0,0,0,0,0,0,0,0,0,0,0,0,0,0,0,0,0,0,0,0,0,0,0,0,0,0,0,0,0,0,0,0,0,0,0,0,0,0,0,0,0,0,0,0,0,0,0,0,0,0,0,0,0,0,0,0,0,0,0,0,0,0,0,0,0,0,0,0,0,0,0,0,0,0,0,0,0,0,0,0,0,0,0,0,0,0,0,0,0,0,0,0,0,0,0,0,0,0]} 1. d4 {[%emt 0:00:35]} Nf6 {[%emt 0:02:15]} 2. Nf3 {[%emt 0:00:23]} d5 {[%emt 0:00:22]} 3. c4 {[%emt 0:00:42]} e6 {[%emt 0:00:06]} 4. e3 {[%emt 0:03:55]} Be7 {[%emt 0:01:15]} 5. Nbd2 {[%emt 0:03:15]} O-O {[%emt 0:01:48]} 6. Bd3 {[%emt 0:00:16]} c5 {[%emt 0:01:16]} 7. dxc5 {[%emt 0:00:32]} Bxc5 {[%emt 0:05:17]} 8. O-O {[%emt 0:00:09]} Nc6 {[%emt 0:01:03]} 9. a3 {[%emt 0:00:56] D30: Damengambit (ohne Sc3).} e5 {[%emt 0:04:58]} 10. cxd5 {[%emt 0:02:40]} Qxd5 {[%emt 0:01:47]} 11. Qc2 {[%emt 0:15:00]} Be7 {[%emt 0:11:02]} 12. Bc4 $146 {[%emt 0:18:27]} ({Predecessor:} 12. Ne4 h6 13. Rd1 Qa5 14. Bd2 Qb6 15. Bc3 Bg4 16. Nxf6+ Bxf6 17. Be4 Rac8 18. Qe2 {0-1 Mirza,S (2250)-Clarke,T (2225) Olympiad-30 Manila 1992 (8.4)}) 12... Qd6 {[%emt 0:11:53]} 13. b4 {[%emt 0:02:59]} Bg4 {[%emt 0:08:54]} 14. Bb2 {[%emt 0:06:21]} Rac8 {[%emt 0:03:14]} 15. Ne4 {[%emt 0:06:30]} Qd7 {[%emt 0:06:27]} 16. Nxf6+ {[%emt 0:06:40]} Bxf6 {[%emt 0:01:06]} 17. Rfd1 {[%emt 0:00:22]} Qe7 {[%emt 0:02:06]} 18. Qe4 {[%emt 0:01:01]} Bh5 {[%emt 0:02:23]} 19. Bd5 {[%emt 0:01:46]} Bg6 {[%emt 0:01:56]} 20. Qg4 {[%emt 0:00:37]} Rcd8 {[%emt 0:15:33]} 21. e4 {[%emt 0:06:32]} Qd7 {[%emt 0:03:24]} 22. Qxd7 {[%emt 0:07:52]} Rxd7 {[%emt 0:00:02]} 23. b5 {[%emt 0:00:06]} Nd4 {[%emt 0:01:12]} 24. Nxd4 {[%emt 0:00:26]} exd4 {[%emt 0:00:02]} 25. f3 {[%emt 0:02:01]} Rc8 {[%emt 0:02:17]} 26. Rac1 {[%emt 0:05:03]} Rdc7 {[%emt 0:05:55]} 27. Rxc7 {[%emt 0:00:09]} Rxc7 {[%emt 0:00:01]} 28. Bxd4 {[%emt 0:00:19]} Bxd4+ {[%emt 0:00:11]} 29. Rxd4 {[%emt 0:00:06]} Kf8 {[%emt 0:00:20]} 30. Kf2 {[%emt 0:01:31]} Ke7 {[%emt 0:00:16]} 31. Bc4 {[%emt 0:02:31]} f6 {[%emt 0:01:31]} 32. g4 {[%emt 0:00:45]} h5 {[%emt 0:02:13]} 33. Kg3 {[%emt 0:02:52]} hxg4 {[%emt 0:00:10]} 34. Kxg4 {[%emt 0:00:18]} Rc5 {[%emt 0:00:17]} 35. h4 {[%emt 0:00:11]} Bh5+ {[%emt 0:00:22]} 36. Kg3 {[%emt 0:00:13]} Be8 {[%emt 0:00:36]} 37. a4 {[%emt 0:00:09]} a6 {[%emt 0:00:58]} 38. bxa6 {[%emt 0:02:02]} bxa6 {[%emt 0:00:01]} 39. Bxa6 {[%emt 0:00:38]} Ra5 {[%emt 0:00:07]} 40. Bb5 {[%emt 0:00:20]} Bxb5 {[%emt 0:00:04]} 41. Rd5 {[%emt 0:00:09]} Rxa4 {[%emt 0:00:07]} 42. Rxb5 {[%emt 0:00:03]} Ra7 {[%emt 0:00:34]} 43. h5 {[%emt 0:01:12]} Kf7 {[%emt 0:00:28]} 44. Kg4 {[%emt 0:00:22]} g6 {[%emt 0:02:20]} 45. hxg6+ {[%emt 0:02:07]} Kxg6 {[%emt 0:00:01]} 46. f4 {[%emt 0:00:11]} Ra4 {[%emt 0:00:35]} 47. f5+ {[%emt 0:00:25]} Kh6 {[%emt 0:00:41]} 48. Kf4 {[%emt 0:00:12]} Ra1 {[%emt 0:00:34]} 49. Rb8 {[%emt 0:01:14]} Rf1+ {[%emt 0:00:05]} 50. Ke3 {[%emt 0:00:07]} Re1+ {[%emt 0:00:14]} 51. Kf3 {[%emt 0:00:09]} Kg7 {[%emt 0:00:37]} 52. Rb7+ {[%emt 0:00:31]} Kf8 {[%emt 0:00:02]} 53. Kg4 {[%emt 0:01:55]} Rh1 {[%emt 0:00:41]} 54. Rc7 {[%emt 0:00:18]} Rg1+ {[%emt 0:01:03]} 55. Kf4 {[%emt 0:00:45]} Rf1+ {[%emt 0:00:05]} 56. Ke3 {[%emt 0:00:03]} Rd1 {[%emt 0:00:39]} 57. Ke2 {[%emt 0:00:36]} Rd4 {[%emt 0:00:06]} 58. Kf3 {[%emt 0:00:10]} Rd3+ {[%emt 0:00:27]} 59. Ke2 {[%emt 0:00:25]} Rd4 {[%emt 0:00:05]} 60. Ke3 {[%emt 0:00:04]} Rd1 {[%emt 0:00:06]} 61. Rc3 {[%emt 0:00:04]} Ke7 {[%emt 0:00:23]} 62. Rd3 {[%emt 0:00:48]} Ra1 {[%emt 0:00:13]} 63. Kf4 {[%emt 0:00:51]} Rf1+ {[%emt 0:00:19]} 64. Kg4 {[%emt 0:00:11]} Rg1+ {[%emt 0:00:09]} 65. Rg3 {[%emt 0:00:54]} Re1 {[%emt 0:00:09]} 66. Kf3 {[%emt 0:00:25]} Kf7 {[%emt 0:00:07]} 67. Rh3 {[%emt 0:00:09]} Kg7 {[%emt 0:00:13]} 68. Rh2 {[%emt 0:00:13]} Kg8 {[%emt 0:00:44]} 69. Rh4 {[%emt 0:00:23]} Kg7 {[%emt 0:00:09]} 70. Kf2 {[%emt 0:00:04]} Ra1 {[%emt 0:00:08]} 71. Ke3 {[%emt 0:03:50]} Rd1 {[%emt 0:00:32]} 72. Rh2 {[%emt 0:00:00]} Kf7 {[%emt 0:00:14]} 73. Rd2 {[%emt 0:00:00]} Ra1 {[%emt 0:00:14]} 74. Kd4 {[%emt 0:00:00]} Ra4+ {[%emt 0:00:52]} 75. Kd5 {[%emt 0:00:00]} Ra5+ {[%emt 0:00:08]} 76. Kc6 {[%emt 0:00:00]} Ra6+ {[%emt 0:00:07]} 77. Kb5 {[%emt 0:00:00]} Ra1 {[%emt 0:00:54]} 78. Rd7+ {[%emt 0:00:00]} Ke8 {[%emt 0:00:20]} 79. Rd6 {[%emt 0:00:05]} Ke7 {[%emt 0:00:18]} 80. Re6+ {[%emt 0:00:53]} Kf7 {[%emt 0:00:01]} 81. Ra6 {[%emt 0:01:02]} Re1 {[%emt 0:00:47]} 82. Ra4 {[%emt 0:00:42]} Ke7 {[%emt 0:00:40]} 83. Kc5 {[%emt 0:00:33]} Rc1+ {[%emt 0:00:12]} 84. Rc4 {[%emt 0:00:20]} Rd1 {[%emt 0:00:35]} 85. Kc6 {[%emt 0:00:10]} Rb1 {[%emt 0:01:23]} 86. Rc5 {[%emt 0:01:02]} Re1 {[%emt 0:00:20]} 87. Rc4 {[%emt 0:00:27]} Rb1 {[%emt 0:00:05]} 88. Kc7 {[%emt 0:00:03]} Ra1 {[%emt 0:00:08]} 89. Rc6 {[%emt 0:01:19]} Ra7+ {[%emt 0:01:08]} 90. Kb6 {[%emt 0:00:28]} Ra4 {[%emt 0:00:54]} 91. Re6+ {[%emt 0:00:26]} Kf7 {[%emt 0:00:05]} 92. Kc5 {[%emt 0:00:10]} Ra5+ {[%emt 0:00:14]} 93. Kc4 {[%emt 0:01:06]} Ra4+ {[%emt 0:00:04]} 94. Kb5 {[%emt 0:00:37]} Ra1 {[%emt 0:00:15]} 95. Rc6 {[%emt 0:00:18]} Re1 {[%emt 0:00:35]} 96. Rc4 {[%emt 0:00:27]} Rb1+ {[%emt 0:00:06]} 97. Rb4 {[%emt 0:01:12]} Rc1 {[%emt 0:00:08]} 98. Rc4 {[%emt 0:00:06]} 1/2-1/2

[Event "1000GM Spring GM-B 2024"]
[Site "New York"]
[Date "2024.03.29"]
[Round "3.3"]
[White "Mandizha, Farai"]
[Black "Kaliksteyn, Alexander"]
[Result "0-1"]
[ECO "E03"]
[WhiteElo "2380"]
[BlackElo "2356"]
[Annotator "RC"]
[PlyCount "86"]
[EventDate "2024.03.26"]
[EventType "tourn"]
[EventCountry "USA"]
[SourceTitle "playchess.com"]
[Source "ChessBase"]
[SourceQuality "1"]
[TimeControl "5400+30"]

1. d4 {[%emt 0:04:04]} d5 {[%emt 0:00:04]} 2. Nf3 {[%emt 0:00:10]} Nf6 {[%emt 0:00:06]} 3. c4 {[%emt 0:00:16]} e6 {[%emt 0:00:04]} 4. g3 {[%emt 0:02:01]} dxc4 {[%emt 0:00:29]} 5. Bg2 {[%emt 0:01:55]} c5 {[%emt 0:00:23]} 6. Qa4+ {[%emt 0:01:35]} Nbd7 {[%emt 0:08:27]} 7. O-O {[%emt 0:07:19]} a6 {[%emt 0:03:37]} 8. dxc5 {[%emt 0:00:18]} Bxc5 {[%emt 0:00:49]} 9. Qxc4 {[%emt 0:00:03]} b5 {[%emt 0:00:33]} 10. Qh4 {[%emt 0:01:04]} Bb7 {[%emt 0:02:37]} 11. Nc3 {[%emt 0:03:51]} O-O {[%emt 0:02:39]} 12. Bg5 {[%emt 0:02:36]} h6 {[%emt 0:08:29]} 13. Rad1 {[%emt 0:05:54]} hxg5 {[%emt 0:20:44]} 14. Nxg5 {[%emt 0:00:07]} Bxg2 {[%emt 0:00:05]} 15. Kxg2 {[%emt 0:00:02]} Qe7 {[%emt 0:00:21]} 16. Nce4 {[%emt 0:14:33]} Rfd8 {[%emt 0:01:05]} 17. b4 {[%emt 0:10:53]} Bxb4 {[%emt 0:06:09]} 18. Rxd7 {[%emt 0:01:50]} Qxd7 {[%emt 0:00:11]} 19. Nxf6+ {[%emt 0:02:44]} gxf6 {[%emt 0:00:03]} 20. Ne4 {[%emt 0:00:53]} Qd5 {[%emt 0:11:25]} 21. f3 {[%emt 0:00:02]} Be7 {[%emt 0:01:46]} 22. Qg4+ {[%emt 0:00:27]} Kf8 {[%emt 0:00:27]} 23. Qh4 {[%emt 0:00:02]} Ke8 {[%emt 0:01:43]} 24. Qh8+ {[%emt 0:01:59]} Kd7 {[%emt 0:00:07]} 25. Qh7 {[%emt 0:00:22]} Rf8 {[%emt 0:07:32]} 26. g4 {[%emt 0:04:35]} Rac8 {[%emt 0:01:00]} 27. Nf2 {[%emt 0:01:52]} Kc7 {[%emt 0:02:20]} 28. a4 {[%emt 0:00:04]} b4 {[%emt 0:00:30]} 29. Rd1 {[%emt 0:00:57]} Qc4 {[%emt 0:00:30]} 30. Nd3 {[%emt 0:01:13]} Kb8 {[%emt 0:00:22]} 31. a5 {[%emt 0:00:44]} Rc7 {[%emt 0:03:59]} 32. Qh6 {[%emt 0:00:42]} Rd8 {[%emt 0:00:54]} 33. Qe3 {[%emt 0:01:24]} Qd4 {[%emt 0:00:41]} 34. Qd2 {[%emt 0:00:36]} b3 {[%emt 0:03:41]} 35. Rb1 {[%emt 0:00:02]} Qc3 {[%emt 0:00:46]} 36. Qd1 {[%emt 0:00:04]} Rxd3 {[%emt 0:00:34]} 37. Qxd3 {[%emt 0:01:57]} Qxd3 {[%emt 0:00:06]} 38. exd3 {[%emt 0:00:02]} Rc2+ {[%emt 0:00:43]} 39. Kg3 {[%emt 0:00:01]} b2 {[%emt 0:00:22]} 40. h4 {[%emt 0:00:04]} Ba3 {[%emt 0:01:04]} 41. h5 {[%emt 0:00:03]} Rc1 {[%emt 0:00:10]} 42. h6 {[%emt 0:00:23]} Rxb1 {[%emt 0:00:05]} 43. h7 {[%emt 0:00:05]} Rh1 {[%emt 0:00:06]} 0-1

[Event "1000GM Spring GM-B 2024"]
[Site "New York"]
[Date "2024.03.29"]
[Round "3.4"]
[White "Furfine, Jacob"]
[Black "Sinha, Sahil"]
[Result "0-1"]
[ECO "B50"]
[WhiteElo "2343"]
[BlackElo "2299"]
[Annotator "RC"]
[PlyCount "68"]
[EventDate "2024.03.26"]
[EventType "tourn"]
[EventCountry "USA"]
[SourceTitle "playchess.com"]
[Source "ChessBase"]
[SourceQuality "1"]
[TimeControl "5400+30"]

1. e4 {[%emt 0:00:04]} c5 {[%emt 0:00:06]} 2. Nf3 {[%emt 0:00:05]} d6 {[%emt 0:00:15]} 3. c3 {[%emt 0:00:28]} Nf6 {[%emt 0:00:36]} 4. Be2 {[%emt 0:00:25]} Nc6 {[%emt 0:01:08]} 5. d4 {[%emt 0:01:24]} cxd4 {[%emt 0:03:34]} 6. cxd4 {[%emt 0:00:10]} d5 {[%emt 0:00:47]} 7. e5 {[%emt 0:00:35]} Ne4 {[%emt 0:00:06]} 8. O-O {[%emt 0:00:21]} e6 {[%emt 0:05:56]} 9. Be3 {[%emt 0:05:45]} Be7 {[%emt 0:05:31]} 10. Nc3 {[%emt 0:06:43]} f6 {[%emt 0:06:00]} 11. exf6 {[%emt 0:01:16]} Bxf6 {[%emt 0:00:33]} 12. Nxe4 {[%emt 0:12:54]} dxe4 {[%emt 0:00:16]} 13. Nd2 {[%emt 1:06:50]} O-O {[%emt 0:01:41]} 14. Nxe4 {[%emt 0:00:00]} Bxd4 {[%emt 0:00:18]} 15. Bxd4 {[%emt 0:00:00]} Nxd4 {[%emt 0:02:01]} 16. Bc4 {[%emt 0:00:00]} b5 {[%emt 0:06:37]} 17. Bb3 {[%emt 0:00:00]} Bb7 {[%emt 0:01:20]} 18. Nc5 {[%emt 0:00:00]} Bf3 {[%emt 0:04:16]} 19. Nxe6 {[%emt 0:00:00]} Bxd1 {[%emt 0:00:39]} 20. Raxd1 {[%emt 0:00:00]} Nxe6 {[%emt 0:13:42]} 21. Bxe6+ {[%emt 0:00:00]} Kh8 {[%emt 0:00:02]} 22. Rxd8 {[%emt 0:00:00]} Raxd8 {[%emt 0:00:05]} 23. f4 {[%emt 0:00:00]} g6 {[%emt 0:02:01]} 24. Rf3 {[%emt 0:05:30]} Rd2 {[%emt 0:00:45]} 25. h3 {[%emt 0:00:00]} Rxb2 {[%emt 0:00:56]} 26. g4 {[%emt 0:00:00]} Re2 {[%emt 0:03:09]} 27. Bd5 {[%emt 0:00:28]} Rd8 {[%emt 0:00:39]} 28. Bb3 {[%emt 0:00:16]} a5 {[%emt 0:00:44]} 29. f5 {[%emt 0:00:53]} a4 {[%emt 0:00:41]} 30. Be6 {[%emt 0:00:16]} gxf5 {[%emt 0:01:35]} 31. gxf5 {[%emt 0:00:11]} Rd1+ {[%emt 0:03:31]} 32. Rf1 {[%emt 0:00:06]} Rxf1+ {[%emt 0:00:46]} 33. Kxf1 {[%emt 0:00:01]} Rb2 {[%emt 0:00:23]} 34. f6 {[%emt 0:00:30]} b4 {[%emt 0:00:13]} 0-1

[Event "1000GM Spring GM-B 2024"]
[Site "New York"]
[Date "2024.03.29"]
[Round "3.5"]
[White "Paragua, Mark"]
[Black "Luo, Terry"]
[Result "1/2-1/2"]
[ECO "E08"]
[WhiteElo "2451"]
[BlackElo "2333"]
[Annotator "TA"]
[PlyCount "31"]
[EventDate "2024.03.26"]
[EventType "tourn"]
[EventCountry "USA"]
[SourceTitle "playchess.com"]
[Source "ChessBase"]
[SourceQuality "1"]
[TimeControl "5400+30"]

{[%evp 21,31,8,14,8,0,0,0,2,0,0,18,5]} 1. d4 {[%emt 0:00:04]} Nf6 {[%emt 0:00:04]} 2. Nf3 {[%emt 0:00:13]} d5 {[%emt 0:00:29]} 3. c4 {[%emt 0:01:11]} e6 {[%emt 0:00:04]} 4. g3 {[%emt 0:00:49]} Bb4+ {[%emt 0:00:07]} 5. Bd2 {[%emt 0:00:57]} Be7 {[%emt 0:00:06]} 6. Bg2 {[%emt 0:00:31]} O-O {[%emt 0:00:09]} 7. O-O {[%emt 0:00:16]} c6 {[%emt 0:02:02]} 8. Qc2 {[%emt 0:01:41]} b6 {[%emt 0:01:24]} 9. Bf4 {[%emt 0:01:57]} Bb7 {[%emt 0:03:09]} 10. Rd1 {[%emt 0:02:39]} Nbd7 {[%emt 0:01:20]} 11. Nc3 {[%emt 0:00:28]} dxc4 {[%emt 0:07:55] The position is equal.} 12. Nd2 {[%emt 0:03:44]} Nd5 {[%emt 0:00:17]} 13. Nxc4 {[%emt 0:00:12]} Nxf4 {[%emt 0:00:04]} 14. gxf4 {[%emt 0:00:06]} Qc7 {[%emt 0:03:19]} 15. e3 {[%emt 0:00:23]} Nf6 {[%emt 0:00:26]} 16. Rac1 {[%emt 0:03:48] Not much happened in this game.   Weighted Error Value: White=0.00 (flawless) /Black=0.06 (flawless) .  OK:         	---       	Black=3      Best:        	White=1     	---} 1/2-1/2